[Event "44th Chess Olympiad Women 2022"]
[Site "Chennai"]
[Date "2022.08.03"]
[Round "6.18"]
[White "Georgescu, Lena"]
[Black "Vargas, Gabriela"]
[Result "1-0"]
[WhiteElo "2279"]
[BlackElo "2140"]
[Annotator "NA RC"]
[PlyCount "78"]
[EventDate "2022.??.??"]
[TimeControl "60"]

1. e4 {[%emt 0:00:06]} e6 {[%emt 0:00:14]} 2. d4 {[%emt 0:00:04]} d5 {[%emt 0:
00:00]} 3. Nc3 {[%emt 0:00:03]} Nf6 {[%emt 0:00:13]} 4. Bg5 {[%emt 0:00:05]}
dxe4 {[%emt 0:00:49]} 5. Nxe4 {[%emt 0:00:06]} Be7 {[%emt 0:00:15]} 6. Nxf6+ {
[%emt 0:00:10]} Bxf6 {[%emt 0:00:43]} 7. Bxf6 {[%emt 0:00:04]} Qxf6 {[%emt 0:
00:00]} 8. Nf3 {[%emt 0:00:19]} c5 {[%emt 0:06:20]} 9. Bb5+ {[%emt 0:00:39]}
Bd7 {[%emt 0:00:21]} 10. Qe2 {[%emt 0:01:05]} O-O {[%emt 0:03:04]} 11. O-O-O {
[%emt 0:03:40]} cxd4 {[%emt 0:03:44]} 12. Rxd4 {[%emt 0:28:27]} Bxb5 {[%emt 0:
00:00]} 13. Qxb5 {[%emt 0:00:07]} Nc6 {[%emt 0:00:18]} 14. Rd7 {[%emt 0:00:14]}
Rac8 {[%emt 0:01:16]} 15. Qg5 {[%emt 0:11:35]} Qxg5+ {[%emt 0:22:36]} 16. Nxg5
{[%emt 0:00:06]} Ne5 {[%emt 0:00:34]} 17. Rxb7 {[%emt 0:02:30]} Nd3+ {[%emt 0:
00:00]} 18. Kb1 {[%emt 0:00:47]} Nxf2 {[%emt 0:00:23]} 19. Rf1 {[%emt 0:01:03]}
Rfd8 {[%emt 0:08:17]} 20. Rxf7 {[%emt 0:07:52]} h6 {[%emt 0:05:48]} 21. Nxe6 {
[%emt 0:05:31]} Rd1+ {[%emt 0:07:28]} 22. Rxd1 {[%emt 0:00:23]} Kxf7 {[%emt 0:
00:00]} 23. Rf1 {[%emt 0:00:55]} Kxe6 {[%emt 0:00:07]} 24. Rxf2 {[%emt 0:00:03]
} Rc4 {[%emt 0:00:21]} 25. b3 {[%emt 0:01:43]} Re4 {[%emt 0:00:09]} 26. Rd2 {
[%emt 0:00:44]} g5 {[%emt 0:00:57]} 27. Kb2 {[%emt 0:00:24]} h5 {[%emt 0:02:00]
} 28. c4 {[%emt 0:00:28]} Kf5 {[%emt 0:03:09]} 29. c5 {[%emt 0:01:56]} Re6 {
[%emt 0:01:54]} 30. b4 {[%emt 0:00:25]} Kf4 {[%emt 0:00:16]} 31. b5 {[%emt 0:
00:00]} Ke3 {[%emt 0:06:02]} 32. Rc2 {[%emt 0:00:22]} Re5 {[%emt 0:00:15]} 33.
a4 {[%emt 0:00:19]} Kd4 {[%emt 0:11:38]} 34. c6 {[%emt 0:00:32]} Re8 {[%emt 0:
00:00]} 35. c7 {[%emt 0:00:22]} Rc8 {[%emt 0:01:31]} 36. a5 {[%emt 0:00:13]}
Kd5 {[%emt 0:01:00]} 37. b6 {[%emt 0:00:09]} axb6 {[%emt 0:00:43]} 38. axb6 {
[%emt 0:00:10]} Kd6 {[%emt 0:00:37]} 39. b7 {[%emt 0:00:45]} Kd5 {[%emt 0:00:
00]} 1-0

[Event "44th Chess Olympiad Women 2022"]
[Site "Chennai"]
[Date "2022.08.03"]
[Round "6.18"]
[White "Heinatz, Gundula"]
[Black "Montiel Caceres, Helen"]
[Result "0-1"]
[WhiteElo "2196"]
[BlackElo "1763"]
[Annotator "TA"]
[PlyCount "80"]
[EventDate "2022.??.??"]
[TimeControl "60"]

{[%evp 9,80,0,14,22,55,35,73,62,59,72,66,44,51,50,43,39,39,0,0,0,7,-24,16,0,24,
0,0,0,85,31,78,0,42,0,0,-41,-11,-25,-35,-38,-31,-148,-118,-154,0,0,75,-177,
-172,-164,-170,-173,-181,-163,-157,-281,-147,-201,-173,-195,-207,-502,-481,
-520,-483,-518,-474,-29975,-29976,-29968,-29972,-29988,-29989]} 1. d4 {[%emt 0:
00:00]} Nf6 {[%emt 0:00:06]} 2. Bf4 {[%emt 0:00:08]} e6 {[%emt 0:00:06]} 3. Nd2
{[%emt 0:00:38]} d5 {[%emt 0:00:08]} 4. Ngf3 {[%emt 0:00:29]} Bd6 {[%emt 0:00:
00]} 5. Bg5 {[%emt 0:00:35]} h6 {[%emt 0:00:10]} 6. Bxf6 {[%emt 0:00:23] D02:1
d4 d5 2 Nf3 sidelines, including 2...Nf6 3 g3 and 2...Nf6 3 Bf4.} gxf6 {
[%emt 0:01:07]} 7. e4 {[%emt 0:03:06]} c6 {[%emt 0:04:56]} 8. Bd3 {[%emt 0:00:
00] White is better.} b6 {[%emt 0:12:27]} 9. Qe2 {[%emt 0:00:31] [#]} Bb7 $146
{[%emt 0:00:06]} ({Predecessor:} 9... Nd7 10. O-O Bb7 11. c4 dxe4 12. Nxe4 Be7
13. Rad1 Qc7 14. a3 O-O-O 15. b4 Kb8 {1-0 (37) Grischuk,A (2777)-Keymer,V 
(2568) Chess.com INT 2020}) 10. a4 {[%emt 0:08:27][%cal Ya2a4,Ya4a5]} Nd7 {
[%emt 0:09:44][%cal Yb8d7,Yd7f6,Yf6e4]} 11. exd5 {[%emt 0:04:00]} cxd5 {
[%emt 0:00:09]} 12. O-O {[%emt 0:00:48]} Kf8 {[%emt 0:10:25]} 13. c4 {[%emt 0:
05:05]} f5 {[%emt 0:02:35]} 14. a5 {[%emt 0:08:04]} Nf6 {[%emt 0:17:30]} 15.
Rfc1 {[%emt 0:17:33]} Bf4 {[%emt 0:12:00]} 16. c5 {[%emt 0:01:10]} bxc5 {
[%emt 0:00:12]} 17. Rxc5 {[%emt 0:00:12]} Ne4 {[%emt 0:00:25]} 18. Rc2 {
[%emt 0:01:20] a6 is the strong threat.} Qf6 {[%emt 0:01:22] [#]} (18... Rc8
$11) 19. Nf1 {[%emt 0:01:26]} (19. a6 Bc8 $11) (19. Ne5 $1 $16 {Black must now
prevent Nd7+.} Bxe5 20. dxe5 Qxe5 21. Rac1) 19... a6 {[%emt 0:08:11]} (19...
Rb8 $14 {is more appropriate.}) 20. g3 {[%emt 0:02:29]} (20. b4 $16) 20... Rg8
{[%emt 0:00:37]} 21. Kh1 {[%emt 0:00:30]} (21. Ra3 $5 {[%cal Ra3b3]}) 21... Bd6
{[%emt 0:00:24]} 22. Ne5 {[%emt 0:03:50]} Bxe5 {[%emt 0:08:24]} 23. dxe5 {
[%emt 0:00:06]} Qxe5 {[%emt 0:00:05]} 24. f3 {[%emt 0:04:31]} f4 {[%emt 0:00:
00][%cal Rf4g3]} 25. g4 {[%emt 0:17:23]} (25. fxe4 $2 dxe4 26. Kg1 Qd4+ 27. Qf2
e3 28. Nxe3 fxe3 $19) ({Better is} 25. Qe1 $1 $15 Rb8 26. Rg2 (26. fxe4 dxe4
27. Qb4+ Ke8 $17)) 25... h5 $1 $36 {[%emt 0:03:58][%cal Yh5g4] Strongly
threatening ...hxg4! Black is really pushing. Black is more active.} 26. Re1 {
[%emt 0:00:17]} (26. fxe4 $2 dxe4 27. Bxa6 Rxa6 $19) 26... hxg4 $2 {[%emt 0:01:
12]} 27. fxe4 $11 {[%emt 0:01:43]} g3 {[%emt 0:01:53] [#]} (27... Rb8 $11) 28.
Qf3 $2 {[%emt 0:01:52] White does not recover from this.} (28. hxg3 $1 $16 {
Hoping for Qd2.} fxg3 29. Kg2) 28... f5 $19 {[%emt 0:00:00]} 29. exf5 {[%emt 0:
05:15]} Qxe1 {[%emt 0:00:14]} 30. fxe6 {[%emt 0:00:00]} g2+ {[%emt 0:00:30]} ({
And not} 30... Qxe6 31. Qxf4+ Qf7 32. Qd6+ Qe7 33. Qh6+ (33. Qxe7+ $2 Kxe7 34.
Nxg3 Rac8 $19) 33... Qg7 34. Qf4+ Qf7 35. Qd6+ Qe7 36. Qh6+ (36. Qxe7+ $2 Kxe7
37. Rc7+ Kd6 $19) 36... Qg7 37. Qf4+ Qf7 $11) 31. Rxg2 {[%emt 0:00:15]} Rxg2 {
[%emt 0:00:13] Dancing on a razor blade.} 32. Kxg2 {[%emt 0:04:01]} (32. Qxf4+
$17 Ke7 33. Qf7+ Kd6 34. Kxg2) 32... Qb4 {[%emt 0:00:00]} ({Inferior is} 32...
Qxe6 33. Qxf4+ Kg8 34. Ng3 $15) (32... Ke7 $19 {Threatens to win with ...Rg8+.}
33. Qg4 Qe5) 33. Ng3 {[%emt 0:02:06]} (33. Qh5 $17 Qxb2+ 34. Kf3) 33... Qxb2+ {
[%emt 0:00:50]} 34. Ne2 {[%emt 0:00:15]} Ke7 {[%emt 0:02:25]} 35. Qg4 {[%emt 0:
00:36] Inhibits Rg8.} (35. Qxf4 {only move.} Rf8 36. Qc7+ Kxe6 37. Kh3) 35...
Rf8 {[%emt 0:00:00]} 36. Qg5+ {[%emt 0:00:53]} Rf6 {[%emt 0:00:01] And now ...
f3+ would win.} 37. Qg7+ {[%emt 0:01:36]} Kxe6 {[%emt 0:00:08]} 38. Qg5 {
[%emt 0:00:33]} (38. Kf3 $19 Kd6 39. Qg8) 38... f3+ {[%emt 0:00:13] Black
mates.} 39. Kh3 {[%emt 0:00:11]} fxe2 {[%emt 0:00:13]} 40. Qg4+ {[%emt 0:01:20]
} Kd6 {[%emt 0:00:08] Weighted Error Value: White=0.71/ Black=0.25 (precise)}
0-1

[Event "44th Chess Olympiad Women 2022"]
[Site "Chennai"]
[Date "2022.08.03"]
[Round "6.18"]
[White "Mayeregger Gonzalez, Renata"]
[Black "Stoeri, Laura"]
[Result "0-1"]
[WhiteElo "1479"]
[BlackElo "2084"]
[Annotator "NA RC"]
[PlyCount "56"]
[EventDate "2022.??.??"]
[TimeControl "60"]

1. e4 {[%emt 0:00:04]} c5 {[%emt 0:00:05]} 2. Nc3 {[%emt 0:00:06]} Nc6 {
[%emt 0:00:06]} 3. g3 {[%emt 0:00:05]} g6 {[%emt 0:00:05]} 4. Bg2 {[%emt 0:00:
00]} Bg7 {[%emt 0:00:06]} 5. d3 {[%emt 0:00:11]} d6 {[%emt 0:00:09]} 6. Nge2 {
[%emt 0:00:12]} e5 {[%emt 0:01:29]} 7. O-O {[%emt 0:01:08]} Nge7 {[%emt 0:00:
00]} 8. Be3 {[%emt 0:00:11]} Nd4 {[%emt 0:02:40]} 9. Qd2 {[%emt 0:01:45]} O-O {
[%emt 0:03:06]} 10. f4 {[%emt 0:00:47]} Nxe2+ {[%emt 0:19:23]} 11. Qxe2 {
[%emt 0:02:13]} exf4 {[%emt 0:03:06]} 12. Bxf4 {[%emt 0:02:09]} Be6 {[%emt 0:
00:00]} 13. e5 {[%emt 0:13:28]} Nf5 {[%emt 0:05:12]} 14. exd6 {[%emt 0:11:48]}
g5 {[%emt 0:03:18]} 15. Bd2 {[%emt 0:10:11]} Nxd6 {[%emt 0:00:24]} 16. Qh5 {
[%emt 0:04:22]} h6 {[%emt 0:00:49]} 17. Be3 {[%emt 0:10:07]} Qd7 {[%emt 0:00:
00]} 18. Qe2 {[%emt 0:06:30]} Rac8 {[%emt 0:01:19]} 19. Ne4 {[%emt 0:07:35]}
Nf5 {[%emt 0:05:17]} 20. Nxc5 {[%emt 0:03:03]} Nd4 {[%emt 0:00:46]} 21. Qf2 {
[%emt 0:03:38]} Rxc5 {[%emt 0:00:39]} 22. c3 {[%emt 0:00:11]} Rf5 {[%emt 0:00:
00]} 23. Qd2 {[%emt 0:03:35]} Nc6 {[%emt 0:02:38]} 24. d4 {[%emt 0:03:01]}
Rxf1+ {[%emt 0:01:44]} 25. Rxf1 {[%emt 0:00:05]} Bd5 {[%emt 0:00:28]} 26. Bxd5
{[%emt 0:02:05]} Qxd5 {[%emt 0:00:05]} 27. b3 {[%emt 0:01:48]} Re8 {[%emt 0:00:
00]} 28. Bf2 {[%emt 0:01:57]} Ne5 {[%emt 0:00:43]} 0-1

[Event "44th Chess Olympiad Women 2022"]
[Site "Chennai"]
[Date "2022.08.03"]
[Round "6.18"]
[White "Perez, Dalila"]
[Black "Hakimifard, Ghazal"]
[Result "0-1"]
[WhiteElo "1799"]
[BlackElo "2296"]
[Annotator "TA"]
[PlyCount "82"]
[EventDate "2022.??.??"]
[TimeControl "60"]

{[%evp 17,82,12,20,-6,12,-9,-8,-9,-19,-20,-9,-47,-50,-46,-25,-40,-41,-43,-57,
-108,-114,-133,-133,-261,-244,-296,-204,-229,-100,-79,-85,-99,-102,-284,-277,
-281,-284,-283,-278,-375,-373,-595,-534,-677,-666,-650,-641,-815,-770,-763,
-764,-1037,-1066,-1047,-1011,-1233,-1229,-1417,-1358,-5514,-5003,-29983,-29984,
-29984,-29985,-29984,-29985]} 1. d4 {[%emt 0:00:03]} Nf6 {[%emt 0:00:06]} 2.
Nf3 {[%emt 0:00:19]} e6 {[%emt 0:00:06]} 3. c4 {[%emt 0:00:03]} b6 {[%emt 0:00:
00]} 4. g3 {[%emt 0:00:08]} Ba6 {[%emt 0:00:08]} 5. b3 {[%emt 0:00:04]} d5 {
[%emt 0:05:15]} 6. cxd5 {[%emt 0:15:51]} exd5 {[%emt 0:00:14]} 7. Bg2 {[%emt 0:
00:00]} Bd6 {[%emt 0:03:07]} 8. O-O {[%emt 0:07:31]} O-O {[%emt 0:01:27]} 9.
Nc3 {[%emt 0:00:20]} Nbd7 {[%emt 0:06:15]} 10. Bg5 {[%emt 0:04:38] E15:
Queen's Indian: 4 g3 sidelines, 4 g3 Ba6 and 4 g3 Bb7 early deviations.} h6 {
[%emt 0:07:44]} 11. Bxf6 {[%emt 0:02:28]} Nxf6 {[%emt 0:00:01]} 12. Ne5 {
[%emt 0:08:11] The position is equal.} Bb7 {[%emt 0:00:33] [#]} 13. Rc1 $146 {
[%emt 0:07:01]} ({Predecessor:} 13. Nb5 Be7 14. Rc1 a6 15. Nc3 Re8 16. e3 Bd6
17. Nd3 Qe7 18. Rc2 {½-½ (73) Inarkiev,E (2664)-Bocharov,D (2577) Sochi 2015}
) 13... Qe8 {[%emt 0:05:10]} 14. Nf3 {[%emt 0:05:45]} Rd8 {[%emt 0:10:09]} 15.
Qd3 {[%emt 0:03:57]} a6 {[%emt 0:01:29] Inhibits Nb5.} 16. Nh4 {[%emt 0:02:11]}
g6 {[%emt 0:05:10]} 17. Rfe1 {[%emt 0:05:24]} Ne4 {[%emt 0:03:22]} 18. Nf3 {
[%emt 0:12:39]} ({Better is} 18. Rf1 $15) 18... Bb4 $17 {[%emt 0:02:12] Black
is more active.} 19. Ne5 {[%emt 0:05:25]} c5 {[%emt 0:05:56] aiming for ...
cxd4.} 20. Ng4 {[%emt 0:04:21]} (20. e3 $17) 20... f5 {[%emt 0:04:59]} (20...
Bxc3 21. Bxe4 Bxd4 22. Qxd4 cxd4 23. Nf6+ Kh8 24. Nxe8 $17) 21. Ne3 {[%emt 0:
00:00]} Kh7 {[%emt 0:13:15]} (21... Bxc3 22. Rxc3 cxd4 23. Qxd4 Nxc3 24. Qxc3
$19) ({Don't go for} 21... Nxc3 $2 22. a3 $19) 22. Red1 {[%emt 0:03:47]} cxd4 {
[%emt 0:03:09]} ({Weaker is} 22... Bxc3 23. Bxe4 Bxd4 24. Bf3) (22... b5 $19 {
Hoping for ...c4.} 23. Nb1 Qe7) 23. Nxe4 {[%emt 0:05:16]} ({Avoid the trap} 23.
Qxd4 $2 Bc5 24. Qd3 d4 $19) 23... dxe4 {[%emt 0:02:52]} 24. Rc7+ {[%emt 0:00:
00]} Rf7 {[%emt 0:02:46]} 25. Rxf7+ $2 {[%emt 0:01:15] [#] White does not
recover from this.} (25. Qc4 $17 {was the only defense.} Rxc7 26. Qxc7+ Qe7 27.
Qxb6) 25... Qxf7 $19 {[%emt 0:00:02]} 26. Qc4 {[%emt 0:00:07]} Qxc4 {[%emt 0:
00:00]} 27. Nxc4 {[%emt 0:00:01]} b5 {[%emt 0:00:44]} 28. Nd2 {[%emt 0:01:23]}
d3 {[%emt 0:02:33]} 29. e3 {[%emt 0:00:40]} (29. Kf1 {might work better.})
29... Rc8 {[%emt 0:00:11]} 30. Nb1 {[%emt 0:00:24]} a5 {[%emt 0:01:13]} 31. a3
{[%emt 0:00:27]} Bf8 {[%emt 0:01:11]} 32. Bf1 {[%emt 0:00:38]} Rc2 {[%emt 0:00:
00]} 33. h4 {[%emt 0:00:34]} Bd5 {[%emt 0:00:16]} 34. a4 {[%emt 0:00:29]} bxa4
{[%emt 0:00:48]} 35. bxa4 {[%emt 0:00:29]} Bb4 {[%emt 0:00:04]} 36. Bh3 {
[%emt 0:00:33]} Ba2 {[%emt 0:00:45] [#] ...Rb2 is the strong threat.} 37. g4 {
[%emt 0:00:25]} Rb2 {[%emt 0:01:08]} 38. gxf5 {[%emt 0:00:35]} Rxb1 {[%emt 0:
00:00]} 39. fxg6+ {[%emt 0:00:25]} Kxg6 {[%emt 0:00:09] Black mates.} 40. Bg4 {
[%emt 0:00:09]} Rxd1+ {[%emt 0:00:18]} 41. Bxd1 {[%emt 0:30:06]} Bb1 {[%emt 0:
00:00] Weighted Error Value: White=1.00/Black=0.14 (very precise)} 0-1

[Event "44th Chess Olympiad Women 2022"]
[Site "Chennai"]
[Date "2022.08.03"]
[Round "6.19"]
[White "Barbier, Astrid"]
[Black "Blokhin, Sofia"]
[Result "0-1"]
[WhiteElo "1879"]
[BlackElo "1996"]
[Annotator "NA RC"]
[PlyCount "116"]
[EventDate "2022.??.??"]
[TimeControl "60"]

1. e4 {[%emt 0:00:03]} c5 {[%emt 0:00:06]} 2. c3 {[%emt 0:00:06]} e6 {[%emt 0:
00:00]} 3. d4 {[%emt 0:00:56]} d5 {[%emt 0:04:49]} 4. exd5 {[%emt 0:00:11]}
exd5 {[%emt 0:00:05]} 5. Nf3 {[%emt 0:00:27]} Nf6 {[%emt 0:01:18]} 6. Bb5+ {
[%emt 0:01:09]} Nc6 {[%emt 0:00:36]} 7. Ne5 {[%emt 0:05:19]} Bd7 {[%emt 0:00:
00]} 8. Bxc6 {[%emt 0:07:37]} Bxc6 {[%emt 0:04:18]} 9. Nxc6 {[%emt 0:00:58]}
bxc6 {[%emt 0:00:05]} 10. O-O {[%emt 0:00:40]} cxd4 {[%emt 0:05:32]} 11. Qxd4 {
[%emt 0:18:56]} Be7 {[%emt 0:01:37]} 12. Qa4 {[%emt 0:02:45]} Qd7 {[%emt 0:00:
00]} 13. Nd2 {[%emt 0:02:35]} O-O {[%emt 0:01:29]} 14. Nf3 {[%emt 0:00:39]} Bd6
{[%emt 0:01:29]} 15. Bf4 {[%emt 0:03:15]} Qg4 {[%emt 0:02:17]} 16. g3 {[%emt 0:
00:00]} Rad8 {[%emt 0:08:58]} 17. Nd2 {[%emt 0:11:16]} Nh5 {[%emt 0:07:18]} 18.
f3 {[%emt 0:07:52]} Bc5+ {[%emt 0:08:44]} 19. Kg2 {[%emt 0:01:15]} Nxf4+ {
[%emt 0:02:01]} 20. Qxf4 {[%emt 0:00:42]} Qxf4 {[%emt 0:00:08]} 21. gxf4 {
[%emt 0:00:04]} Be3 {[%emt 0:00:19]} 22. Nb3 {[%emt 0:00:57]} Bxf4 {[%emt 0:00:
00]} 23. Rae1 {[%emt 0:00:51]} Bd6 {[%emt 0:04:35]} 24. Nd4 {[%emt 0:01:10]} c5
{[%emt 0:02:29]} 25. Nf5 {[%emt 0:00:07]} g6 {[%emt 0:02:09]} 26. Ne7+ {
[%emt 0:02:09]} Bxe7 {[%emt 0:00:29]} 27. Rxe7 {[%emt 0:00:04]} a6 {[%emt 0:00:
00]} 28. Rfe1 {[%emt 0:01:42]} d4 {[%emt 0:04:57]} 29. cxd4 {[%emt 0:01:44]}
cxd4 {[%emt 0:00:05]} 30. Kf2 {[%emt 0:01:16]} Rc8 {[%emt 0:03:24]} 31. R1e2 {
[%emt 0:00:55]} Rfd8 {[%emt 0:01:30]} 32. Rd2 {[%emt 0:01:26]} Rd5 {[%emt 0:00:
00]} 33. Ra7 {[%emt 0:05:07]} a5 {[%emt 0:00:55]} 34. Ke2 {[%emt 0:01:27]} h5 {
[%emt 0:04:10]} 35. Kd3 {[%emt 0:05:36]} g5 {[%emt 0:01:03]} 36. Re2 {[%emt 0:
00:00]} Rcd8 {[%emt 0:01:55]} 37. Re4 {[%emt 0:02:43]} Rf5 {[%emt 0:03:07]} 38.
f4 {[%emt 0:03:26]} gxf4 {[%emt 0:01:28]} 39. Re1 {[%emt 0:01:39]} f3 {[%emt 0:
00:00]} 40. Rae7 {[%emt 0:02:03]} Rf4 {[%emt 0:09:27]} 41. Rf1 {[%emt 0:33:28]}
Rd6 {[%emt 0:15:06]} 42. Re4 {[%emt 0:00:00]} Rxe4 {[%emt 0:00:17]} 43. Kxe4 {
[%emt 0:00:00]} d3 {[%emt 0:00:29]} 44. Rg1+ {[%emt 0:00:00]} Kf8 {[%emt 0:00:
00]} 45. Kxf3 {[%emt 0:00:00]} Rc6 {[%emt 0:01:32]} 46. Rd1 {[%emt 0:00:00]}
Rc2 {[%emt 0:00:10]} 47. Rxd3 {[%emt 0:00:00]} Rxb2 {[%emt 0:00:11]} 48. Rd5 {
[%emt 0:00:00]} Rxa2 {[%emt 0:00:35]} 49. Rxh5 {[%emt 0:00:00]} a4 {[%emt 0:00:
00]} 50. Ra5 {[%emt 0:00:00]} a3 {[%emt 0:00:22]} 51. h4 {[%emt 0:00:00]} Ra1 {
[%emt 0:00:29]} 52. h5 {[%emt 0:00:43]} a2 {[%emt 0:00:38]} 53. Kg2 {[%emt 0:
00:00]} Kg7 {[%emt 0:00:28]} 54. Ra6 {[%emt 0:00:28]} f5 {[%emt 0:00:28]} 55.
Rg6+ {[%emt 0:03:07]} Kh7 {[%emt 0:00:49]} 56. Ra6 {[%emt 0:00:06]} f4 {
[%emt 0:00:13]} 57. Ra3 {[%emt 0:01:19]} f3+ {[%emt 0:00:57]} 58. Rxf3 {
[%emt 0:02:23]} Rb1 {[%emt 0:01:00]} 0-1

[Event "44th Chess Olympiad Women 2022"]
[Site "Chennai"]
[Date "2022.08.03"]
[Round "6.19"]
[White "De Rycke, Tyani"]
[Black "Sinitsina, Anastassia"]
[Result "1-0"]
[WhiteElo "1994"]
[BlackElo "2175"]
[Annotator "TA"]
[PlyCount "97"]
[EventDate "2022.??.??"]
[TimeControl "60"]

{[%evp 10,97,0,0,12,7,17,9,21,8,17,16,30,8,42,13,17,6,43,5,9,7,9,0,0,0,0,0,0,
-116,0,0,7,0,0,0,98,0,734,679,5472,2355,29989,5393,1927,1547,29982,29983,29983,
622,586,589,572,571,571,571,571,542,687,672,920,827,1101,998,1078,1077,1075,
1054,916,802,1542,1432,29966,2106,29969,29967,29961,29962,29969,29970,29970,
29971,29983,29984,29986,29987,29988,29989,29991,29992]} 1. e4 {[%emt 0:00:01]}
e5 {[%emt 0:00:04]} 2. Nf3 {[%emt 0:00:05]} Nc6 {[%emt 0:00:06]} 3. Bc4 {
[%emt 0:00:06]} Bc5 {[%emt 0:00:09]} 4. d3 {[%emt 0:00:07]} Nf6 {[%emt 0:00:05]
} 5. Be3 {[%emt 0:00:08]} Bxe3 {[%emt 0:04:11]} 6. fxe3 {[%emt 0:00:08]} d5 {
[%emt 0:04:32] C50: Hungarian Defence and Giuoco Pianissimo.} 7. exd5 {[%emt 0:
00:00]} Nxd5 {[%emt 0:00:08]} 8. Qd2 {[%emt 0:01:32]} O-O {[%emt 0:02:29] The
position is equal.} 9. O-O {[%emt 0:01:12]} Be6 {[%emt 0:02:51][%cal Ye5e4]}
10. Nc3 {[%emt 0:12:29] [#]} h6 $146 {[%emt 0:04:47]} ({Predecessor:} 10... Re8
11. Ne4 h6 12. Nc5 Bc8 13. Qf2 Nf6 14. Nh4 Na5 15. Bb3 Nxb3 16. axb3 Qe7 17.
Na4 Ng4 18. Qg3 Nxe3 19. Rf3 Nxc2 20. Raf1 Nd4 21. R3f2 Qg5 {0-1 (21) Zernovic,
F (1874)-Blazek,M (1984) Slovakia 2020}) 11. Rf2 {[%emt 0:11:19]} Qd6 {[%emt 0:
00:00]} 12. Raf1 {[%emt 0:06:07]} (12. Ne4 $5 {[%cal Re4d6]} Qe7 13. d4 $14)
12... Nxc3 {[%emt 0:05:51]} 13. Qxc3 {[%emt 0:00:40]} Rae8 {[%emt 0:02:06]} 14.
Nh4 {[%emt 0:03:51]} (14. Bb5 $5 {[%cal Rb5c6]}) 14... Bxc4 {[%emt 0:01:34]}
15. Qxc4 {[%emt 0:00:07][%cal Rf2f7]} Qe6 {[%emt 0:00:10]} 16. Qe4 {[%emt 0:00:
00]} Qxa2 {[%emt 0:03:45]} 17. b3 {[%emt 0:00:48][%cal Yh4g6]} Qa3 {[%emt 0:00:
00]} 18. Qg4 {[%emt 0:05:29] Strongly threatening Nf5.} Qb4 {[%emt 0:04:46]}
19. c4 {[%emt 0:06:22]} (19. Qh5 $1 $11 f6 20. Rxf6 gxf6 21. Qg6+ Kh8 22. Qxh6+
Kg8 23. Qg6+ Kh8 24. Qh6+ Kg8 25. Qg6+ Kh8 26. Qh6+) 19... Qe7 {[%emt 0:01:56]}
(19... Ne7 $17 20. Rb1 Rd8) 20. Rf6 $11 {[%emt 0:02:21] Hoping for Rxh6.} (20.
Nf5 Qg5 21. Qxg5 hxg5 $15) 20... Kh7 $132 {[%emt 0:05:15] Black puts up
resistance} 21. Qf5+ {[%emt 0:06:00]} Kg8 {[%emt 0:00:13]} 22. Qh5 {[%emt 0:07:
19][%cal Yf6h6] Threatens to win with Rxh6!} Kh7 {[%emt 0:04:24] [#]} (22...
gxf6 $2 23. Nf5 Kh8 24. Qxh6+ Kg8 25. Qg7#) (22... Qd8 $1 $11 {keeps the
balance.}) 23. g4 {[%emt 0:06:11] White is much more active.} Nd8 $2 {[%emt 0:
12:52] [#] White now steadily converts the win.} (23... gxf6 $2 {is a self
mate.} 24. Nf5 Kh8 25. Qxh6+ Kg8 26. Qg7#) (23... Kg8 $11) 24. g5 $1 $18 {
[%emt 0:00:14]} Ne6 {[%emt 0:00:19]} (24... Qxf6 25. gxf6) 25. Nf5 {[%emt 0:02:
21] White wants to mate with g6+.} Qd7 {[%emt 0:02:37] [#]} 26. Nxh6 $1 {
[%emt 0:01:30]} g6 {[%emt 0:02:14]} 27. Qh4 {[%emt 0:00:15][%cal Rh6f7]} Kg7 {
[%emt 0:00:17]} 28. Nxf7 {[%emt 0:00:56]} Rxf7 {[%emt 0:00:00]} 29. Rxf7+ {
[%emt 0:01:08]} (29. Rxg6+ $142 Kf8 30. Qh8+ Ke7 31. Rxf7+ Kd6 32. Rxd7+ Kc5
33. Qxe8 Kb4 34. Rxe6) 29... Qxf7 {[%emt 0:00:06]} 30. Rxf7+ {[%emt 0:00:06]}
Kxf7 {[%emt 0:00:05] Endgame KQ-KRN} 31. Qf2+ {[%emt 0:00:11]} Kg8 {[%emt 0:00:
15]} 32. Qf6 {[%emt 0:00:21]} Nf8 {[%emt 0:00:00]} 33. h4 {[%emt 0:00:17]} Re6
{[%emt 0:00:05]} 34. Qd8 {[%emt 0:01:03]} Rb6 {[%emt 0:01:20]} 35. Qd5+ {
[%emt 0:00:59]} Kg7 {[%emt 0:01:00]} 36. Qxe5+ {[%emt 0:00:10]} Kg8 {[%emt 0:
00:06]} 37. c5 {[%emt 0:04:09]} Rb4 {[%emt 0:00:00]} 38. d4 {[%emt 0:00:16]
[%cal Yd3d4,Yd4d5,Yd5d6]} c6 {[%emt 0:00:00]} 39. d5 {[%emt 0:01:40]} Rxb3 {
[%emt 0:02:19]} 40. d6 {[%emt 0:01:05] Black must now prevent Qe8.} a5 {
[%emt 0:02:24]} 41. Qe4 {[%emt 0:34:05]} (41. Qe8 $142 Rb1+ 42. Kf2 Rd1 43. h5
Rd2+ 44. Kf3 Rd5 45. hxg6 Rf5+ 46. Ke4) 41... Rb4 {[%emt 0:36:03]} 42. Qe7 {
[%emt 0:00:32] White mates.} Rb1+ {[%emt 0:02:18]} 43. Kf2 {[%emt 0:00:11]} Rd1
{[%emt 0:00:04]} 44. Qxb7 {[%emt 0:00:20]} a4 {[%emt 0:00:05]} 45. Qb4 {
[%emt 0:00:27]} Rd5 {[%emt 0:01:41]} 46. e4 {[%emt 0:00:00]} Re5 {[%emt 0:00:
13]} 47. Qxa4 {[%emt 0:01:11]} Rxc5 {[%emt 0:00:06]} 48. Qa2+ {[%emt 0:00:47]}
Kg7 {[%emt 0:00:23]} 49. Qa7+ {[%emt 0:00:39] Weighted Error Value: White=0.30/
Black=0.95} 1-0